bitfinex/quotes_ETHUSD_20250314
["timestamp","ask_amount","ask_price","bid_price","bid_amount"]
[1741969753718,5.18593,1928.3,1927.8,11.22900629]
[1741969753919,5.18593,1928.3,1927.9,5.18688]
[1741969754621,10.37205,1928.3,1927.9,5.18688]
[1741969754793,5.18681,1928.0,1927.8,5.99]
[1741969754993,5.18681,1928.0,1927.7,0.7517]
[1741969756015,5.18681,1928.0,1927.7,5.9392]
[1741969756328,5.18651,1928.1,1927.7,5.9392]
[1741969757291,10.37311,1928.1,1927.7,5.93909]
[1741969757497,5.18651,1928.1,1927.7,5.93909]
[1741969757691,10.37315,1928.1,1927.7,5.93909]
[1741969758420,5.18627,1928.2,1927.8,5.18715]
[1741969758620,5.18627,1928.2,1927.8,5.18711]
[1741969758817,5.99842,1928.5,1928.0,5.18649]
[1741969759020,6.295,1928.5,1928.1,0.8078]
[1741969759208,10.37147,1928.4,1928.0,11.1766]
[1741969759411,10.37147,1928.4,1928.0,18.080681]
[1741969759412,5.18565,1928.4,1928.0,18.080681]
[1741969759620,10.66745,1928.5,1928.1,5.18632]
[1741969759820,10.66745,1928.5,1928.0,12.894081]
[1741969759821,5.18584,1928.4,1928.0,12.894081]
[1741969760026,5.18591,1928.3,1928.0,12.894081]
[1741969760633,10.37165,1928.4,1928.0,12.894001]
[1741969761134,5.18582,1928.4,1928.1,5.18639]
[1741969761427,10.3717,1928.4,1928.1,1.8080391]
[1741969761634,5.18582,1928.4,1928.1,1.8080391]
[1741969762704,5.18592,1928.3,1928.1,1.8080391]
[1741969762904,5.18542,1928.5,1928.1,5.18631]
[1741969763204,5.18486,1928.7,1928.3,5.18566]
[1741969763401,5.18548,1928.5,1928.2,5.1861]
[1741969764324,5.18548,1928.5,1928.1,5.94585]
[1741969764325,10.37107,1928.5,1928.1,5.94585]
[1741969764515,5.18603,1928.3,1928.1,0.7596]
[1741969765534,10.37211,1928.3,1928.1,0.7596]
[1741969765938,5.18618,1928.2,1928.0,5.99]
[1741969766608,10.37216,1928.3,1928.0,5.99]
[1741969766809,5.18603,1928.3,1928.0,5.99]
[1741969767136,5.18591,1928.3,1927.7,8.92401454]
[1741969767336,5.18662,1928.1,1927.8,5.18718]
[1741969767509,10.66601,1928.3,1927.7,12.23934069]
[1741969767709,5.18621,1928.2,1927.8,5.18699]
[1741969767909,5.18621,1928.2,1927.9,5.18694]
[1741969768333,10.66601,1928.3,1927.9,5.18694]
[1741969768538,15.85209,1928.3,1927.9,5.18694]
[1741969768735,10.66601,1928.3,1927.9,10.37379]
[1741969769038,10.66601,1928.3,1928.0,1.791479]
[1741969769214,5.1862,1928.2,1928.0,0.7541]
[1741969770339,10.37259,1928.2,1927.8,5.99021]
[1741969770709,5.1862,1928.2,1927.8,0.8031]
[1741969770911,5.18698,1928.0,1927.8,0.8031]
[1741969771440,5.18699,1927.9,1927.7,5.99]
[1741969771623,5.18699,1927.9,1927.7,6.8053]
[1741969771818,10.37415,1927.9,1927.7,6.8053]
[1741969772228,5.1869,1928.0,1927.7,6.8053]
[1741969772542,5.1869,1928.0,1927.7,11.31993215]
[1741969772920,10.3738,1928.0,1927.7,11.31993215]
[1741969773126,5.18712,1927.9,1927.7,8.004606]
[1741969773522,5.18769,1927.7,1927.5,0.8187]
[1741969773722,5.18769,1927.7,1927.3,5.99]
[1741969773723,5.18818,1927.5,1927.3,5.99]
[1741969774032,5.18789,1927.6,1927.2,15.36459975]
[1741969774239,5.18821,1927.5,1927.2,10.12402615]
[1741969774840,5.18821,1927.5,1927.2,15.31289615]
[1741969775028,5.18789,1927.6,1927.2,17.36290277]
[1741969775242,5.479,1927.8,1927.2,12.17421277]
[1741969775538,5.18753,1927.7,1927.4,5.1882]
[1741969775715,10.6665,1927.8,1927.4,5.1882]
[1741969775914,5.18632,1928.2,1927.7,5.18726]
[1741969776217,5.18672,1928.0,1927.8,0.7836]
[1741969777135,5.18627,1928.2,1927.8,0.7836]
[1741969777438,5.18631,1928.2,1927.8,10.48741232]
[1741969777652,5.18662,1928.1,1927.8,1.98489617]
[1741969777826,10.37329,1928.1,1927.8,1.98489617]
[1741969778231,5.18662,1928.1,1927.8,1.98489617]
[1741969778436,5.18687,1928.0,1927.8,0.7836]
[1741969778629,5.18699,1927.9,1927.8,0.7836]
[1741969778846,5.18699,1927.9,1927.7,5.99]
[1741969778847,5.18726,1927.8,1927.7,5.99]
[1741969779442,5.18699,1927.9,1927.7,5.99]
[1741969779751,10.37417,1927.9,1927.7,5.99]
[1741969779923,11.494457,1927.9,1927.7,5.99]
[1741969780127,5.18699,1927.9,1927.7,5.99]
[1741969780447,6.01545,1928.0,1927.7,5.99]
[1741969780848,5.478,1928.1,1927.7,5.99]
[1741969781036,5.478,1928.1,1927.8,5.18709]
[1741969781218,5.478,1928.1,1927.8,5.18716]
[1741969781423,5.478,1928.1,1927.8,6.304876]
[1741969781951,10.66448,1928.1,1927.8,6.304876]
[1741969782147,5.478,1928.1,1927.8,6.304876]
[1741969782370,5.478,1928.1,1927.8,6.304856]
[1741969783363,5.478,1928.1,1927.8,1.117716]
[1741969783563,5.18675,1928.0,1927.7,11.17752]
[1741969784557,5.93742,1928.2,1927.8,5.18715]
[1741969784831,5.18622,1928.2,1927.8,5.18714]
[1741969785031,10.37257,1928.2,1927.8,5.18714]
[1741969785356,10.37198,1928.3,1927.9,0.7853]
[1741969785533,5.18629,1928.2,1927.9,5.97219]
[1741969785735,5.18629,1928.2,1927.9,0.7853]
[1741969786359,5.18648,1928.1,1927.9,0.7853]
[1741969786657,10.37311,1928.1,1927.9,0.7853]
[1741969786864,5.18648,1928.1,1927.9,0.7853]
[1741969787731,5.18623,1928.2,1927.9,0.7853]
[1741969788058,10.37261,1928.2,1927.9,0.7853]
[1741969788260,5.18623,1928.2,1927.9,0.7853]
[1741969788961,5.18623,1928.2,1927.9,5.97226]
[1741969789134,5.18618,1928.2,1927.9,5.97226]
[1741969790636,5.18596,1928.3,1927.9,11.15891]
[1741969790834,10.37206,1928.3,1927.9,5.9721]
[1741969791129,10.37203,1928.3,1927.9,5.9721]
[1741969791429,10.37205,1928.3,1927.9,5.9721]
[1741969791632,5.18596,1928.3,1927.9,7.088031]
[1741969791834,6.2824,1928.6,1928.0,3.36719348]
[1741969792047,5.18546,1928.5,1928.1,10.37263]
[1741969792249,10.37105,1928.5,1928.1,5.18631]
[1741969792564,5.18546,1928.5,1928.1,5.18631]
[1741969792866,10.37102,1928.5,1928.2,0.518631]
[1741969793035,5.18546,1928.5,1928.2,0.518631]
[1741969793661,10.37099,1928.5,1928.1,5.18631]
[1741969793831,11.46751,1928.6,1928.2,5.1861]
[1741969794035,5.1854,1928.5,1928.2,5.1861]
[1741969794258,5.18567,1928.4,1928.1,5.18641]
[1741969794465,10.37104,1928.5,1928.1,5.18641]
[1741969794639,5.1854,1928.5,1928.2,5.98733]
[1741969795138,5.1857,1928.4,1928.2,0.8012]
[1741969795437,5.1854,1928.5,1928.2,0.8012]
[1741969795764,5.95808,1928.4,1928.0,11.1767]
[1741969795970,5.95808,1928.4,1928.0,16.36326]
[1741969796353,5.18621,1928.2,1928.0,5.99]
[1741969796663,10.37214,1928.3,1927.9,5.18687]
[1741969796968,5.18604,1928.3,1927.9,10.975057]
[1741969797165,5.18604,1928.3,1928.0,5.18671]
[1741969797354,0.7724,1928.4,1928.1,5.18632]
[1741969797667,5.95807,1928.4,1928.1,5.18632]
[1741969797863,6.222475,1928.5,1928.1,5.99379]
[1741969798070,5.18542,1928.5,1928.2,5.18609]
[1741969798269,5.9602,1928.6,1928.2,5.18609]
[1741969798568,5.18553,1928.5,1928.1,11.18007]
[1741969798766,10.37108,1928.5,1928.1,5.99378]
[1741969799068,5.18579,1928.4,1928.1,0.8075]
[1741969799269,5.18579,1928.4,1928.1,5.99392]
[1741969799467,6.222922,1928.4,1928.1,0.8075]
[1741969799658,5.18579,1928.4,1928.1,0.8075]
[1741969799859,10.3716,1928.4,1928.1,0.8075]
[1741969800074,5.18592,1928.3,1928.1,0.8075]
[1741969800360,5.18579,1928.4,1928.1,5.99393]
[1741969801246,5.18629,1928.2,1928.0,5.99]
[1741969801452,1.301229,1928.2,1927.8,5.96202]
[1741969801659,0.7826,1928.2,1927.6,10.11522615]
[1741969801971,5.18687,1928.0,1927.6,15.35481991]
[1741969802156,0.7826,1928.2,1927.8,5.18714]
[1741969802364,5.18662,1928.1,1927.7,5.18743]
[1741969802672,10.37326,1928.1,1927.7,5.67332976]
[1741969802875,10.37326,1928.1,1927.7,7.77094435]
[1741969803170,5.18662,1928.1,1927.7,7.77094435]
[1741969803756,5.18673,1928.0,1927.7,7.77094435]
[1741969804485,4.74414108,1928.1,1927.7,7.77082435]
[1741969804643,9.93076108,1928.1,1927.7,7.77082435]
[1741969805142,4.74414108,1928.1,1927.7,7.28492459]
[1741969805670,5.18609,1928.3,1927.9,5.18685]
[1741969805871,5.1862,1928.2,1927.8,5.91553246]
[1741969806049,3.0,1928.5,1927.9,0.821]
[1741969806256,12.10954,1928.7,1928.2,5.18607]
[1741969806257,10.65621,1928.6,1928.2,5.18607]
[1741969806572,15.84148,1928.6,1928.2,5.99137]
[1741969806775,5.18521,1928.6,1928.3,0.599137]
[1741969806976,5.18515,1928.6,1928.3,5.784947]
[1741969807147,6.00934,1928.7,1928.3,5.784897]
[1741969807148,11.19436,1928.7,1928.3,5.784897]
[1741969807354,5.18521,1928.6,1928.3,5.784897]
[1741969807676,6.00934,1928.7,1928.3,10.970677]
[1741969807973,5.96247,1929.3,1928.7,5.18468]
[1741969808180,0.7791,1929.3,1928.9,5.18415]
[1741969808379,5.18238,1929.7,1928.9,5.18415]
[1741969808380,0.7791,1929.6,1929.0,0.7618]
[1741969808559,5.18324,1929.3,1929.0,0.7618]
[1741969808877,10.36669,1929.3,1929.0,0.7618]
[1741969809042,0.7791,1929.2,1928.8,5.99]
[1741969809240,5.184,1929.1,1928.6,5.94673]
[1741969809444,0.7791,1929.2,1928.6,0.7618]
[1741969809445,5.1844,1928.9,1928.6,0.7618]
[1741969809967,5.18468,1928.8,1928.6,0.7618]
[1741969810277,5.18484,1928.7,1928.5,5.99]
[1741969810463,5.18451,1928.9,1928.6,0.599]
[1741969810670,10.36907,1928.9,1928.6,0.599]
[1741969810972,5.18463,1928.8,1928.6,0.599]
[1741969811182,5.18376,1929.1,1928.6,0.599]
[1741969811387,5.1844,1928.9,1928.6,0.599]
[1741969811549,10.3689,1928.9,1928.6,0.599]
[1741969811750,5.18483,1928.7,1928.5,5.99]
[1741969812055,5.18442,1928.9,1928.5,14.49059615]
[1741969812271,10.36893,1928.9,1928.5,14.49059615]
[1741969812595,5.18443,1928.9,1928.5,14.49065615]
[1741969812748,6.2481,1929.2,1928.5,5.99]
[1741969813081,5.18432,1928.9,1928.5,5.99]
[1741969813381,5.18404,1929.0,1928.5,14.54252658]
[1741969813558,5.18377,1929.1,1928.7,3.31532615]
[1741969813883,5.18343,1929.3,1928.9,5.1842]
[1741969813884,10.36685,1929.3,1928.9,5.1842]
[1741969814046,5.18342,1929.3,1928.9,10.36834]
[1741969814251,5.18298,1929.4,1929.1,5.18372]
[1741969814446,5.18298,1929.4,1929.0,6.220654]
[1741969814682,10.36613,1929.4,1929.0,6.220654]
[1741969814981,5.18298,1929.4,1929.0,6.220654]
[1741969815282,10.36614,1929.4,1929.0,6.220654]
[1741969815445,5.18298,1929.4,1929.1,0.6220654]
[1741969815952,5.18305,1929.4,1929.1,0.6220654]
[1741969816149,5.18305,1929.4,1929.0,5.18392]
[1741969816351,5.18337,1929.3,1928.9,5.18417]
[1741969816561,10.36682,1929.3,1928.9,5.18417]
[1741969817078,5.18359,1929.2,1928.8,5.94627]
[1741969817249,5.1838,1929.1,1928.8,0.7618]
[1741969817450,5.18403,1929.0,1928.8,0.7618]
[1741969817750,5.18463,1928.8,1928.6,5.99]
[1741969817962,5.18463,1928.8,1928.5,6.8232]
[1741969818157,5.18403,1929.0,1928.5,12.00856]
[1741969818362,5.18403,1929.0,1928.6,6.385716]
[1741969818560,10.36826,1929.0,1928.6,6.385716]
[1741969818769,5.18463,1928.8,1928.5,6.8232]
[1741969818975,5.18494,1928.7,1928.5,6.8232]
[1741969819168,5.18494,1928.7,1928.5,0.8332]
[1741969819377,5.18494,1928.7,1928.3,11.99412]
[1741969819683,10.36998,1928.7,1928.3,11.99412]
[1741969819883,5.18494,1928.7,1928.3,14.04362461]
[1741969820182,0.7604,1928.9,1928.3,14.04362461]
[1741969820379,5.18457,1928.8,1928.3,14.04357461]
[1741969820679,5.18488,1928.7,1928.4,5.18564]
[1741969820861,5.18488,1928.7,1928.3,14.04357461]
[1741969821057,5.18457,1928.8,1928.4,6.58973746]
[1741969821380,10.3688,1928.9,1928.5,5.18535]
[1741969821579,5.18422,1929.0,1928.5,5.18512]
[1741969821777,6.2855,1929.1,1928.7,5.18465]
[1741969821979,5.467,1929.1,1928.8,0.05184889]
[1741969822182,10.65088,1929.1,1928.7,5.782705]
[1741969822495,10.65088,1929.1,1928.7,11.772785]
[1741969822496,5.467,1929.1,1928.7,11.772785]
[1741969822665,5.467,1929.1,1928.8,5.18445]
[1741969823304,5.18359,1929.2,1928.7,6.587955]
[1741969823450,5.18278,1929.5,1929.0,5.18402]
[1741969823656,5.18278,1929.5,1929.2,5.18345]
[1741969823883,5.18188,1929.8,1929.2,12.05342281]
[1741969824063,5.18188,1929.8,1929.2,6.8181]
[1741969824064,5.466,1929.8,1929.2,6.8181]
[1741969824257,5.18309,1929.4,1929.2,6.8181]
[1741969824453,3.8064,1929.9,1929.2,6.8181]
[1741969824768,5.18285,1929.5,1929.2,6.8181]
[1741969825284,5.18277,1929.5,1929.2,6.8181]
[1741969825487,5.1825,1929.6,1929.2,12.00154]
[1741969825798,5.18322,1929.3,1929.2,5.99]
[1741969826085,5.18301,1929.4,1929.2,5.99]
[1741969826287,5.18322,1929.3,1929.2,5.99]
[1741969826484,5.18376,1929.1,1928.9,5.99]
[1741969826700,5.18421,1929.0,1928.8,0.8128]
[1741969827291,5.18377,1929.1,1928.8,0.8128]
[1741969827790,10.36722,1929.2,1928.8,7.714499]
[1741969827956,10.64835,1929.3,1928.9,5.18416]
[1741969828163,5.18388,1929.1,1928.8,2.530019]
[1741969828988,10.36785,1929.1,1928.8,0.8128]
[1741969829191,5.18409,1929.0,1928.8,0.8128]
[1741969829389,5.18409,1929.0,1928.7,5.99]
[1741969829563,10.36835,1929.0,1928.7,5.99]
[1741969829763,0.7822,1929.1,1928.4,8.17685746]
[1741969829964,5.18514,1928.6,1928.4,5.99]
[1741969830174,5.18514,1928.6,1928.3,5.99]
[1741969830375,5.18539,1928.5,1928.3,5.99]
[1741969831466,5.18564,1928.4,1928.1,5.99]
[1741969831793,5.18538,1928.5,1928.1,11.17634]
[1741969831974,5.18566,1928.4,1928.1,5.99]
[1741969832170,5.18538,1928.5,1928.1,11.17641]
[1741969832490,5.18538,1928.5,1928.1,13.22257962]
[1741969832887,5.18538,1928.5,1928.1,18.40883962]
[1741969833055,5.18538,1928.5,1928.1,13.22242962]
[1741969833477,10.37097,1928.5,1928.1,13.22242962]
[1741969833884,5.18574,1928.4,1928.1,8.03616962]
[1741969834098,1.354795,1928.7,1928.1,5.99]
[1741969834301,5.18603,1928.3,1928.1,5.99]
[1741969834999,5.18618,1928.2,1928.1,5.99]
[1741969835200,5.18674,1928.0,1927.8,6.7774]
[1741969835400,5.18645,1928.1,1927.8,6.7774]
[1741969835603,5.18645,1928.1,1927.8,7.973891]
[1741969835769,5.18645,1928.1,1927.8,6.7774]
[1741969836089,5.18677,1928.0,1927.8,5.99]
[1741969836297,5.18792,1927.6,1927.3,6.7723]
[1741969836591,5.18806,1927.5,1927.3,5.99]
[1741969836789,5.18789,1927.6,1927.3,5.99]
[1741969837004,5.18816,1927.5,1927.3,7.107878]
[1741969837206,5.18754,1927.7,1927.3,12.296298]
[1741969837373,5.18762,1927.7,1927.3,12.296298]
[1741969837574,5.18789,1927.6,1927.3,7.107878]
[1741969838203,10.6513,1927.8,1927.4,6.7149278]
[1741969838705,5.18755,1927.7,1927.4,1.5266878]
[1741969839001,10.65141,1927.8,1927.4,6.7148678]
[1741969839475,5.18764,1927.7,1927.4,1.5266878]
[1741969839673,5.464,1927.8,1927.4,1.5266878]
[1741969839877,5.464,1927.8,1927.4,0.8159]
[1741969839878,10.65127,1927.8,1927.4,0.8159]
[1741969840101,10.65127,1927.8,1927.4,6.00412]
[1741969840606,5.18767,1927.7,1927.4,0.8159]
[1741969840781,10.6513,1927.8,1927.4,0.86778089]
[1741969840989,5.464,1927.8,1927.6,5.18761]
[1741969841303,10.65055,1928.1,1927.7,5.18742]
[1741969841511,10.65055,1928.1,1927.7,5.23921053]
[1741969841675,5.464,1928.1,1927.8,5.98616]
[1741969842092,5.18619,1928.2,1927.8,5.98616]
[1741969842300,5.18645,1928.1,1927.8,0.7991]
[1741969842499,5.18717,1927.9,1927.7,5.99]
[1741969842687,5.18726,1927.8,1927.7,5.99]
[1741969843097,5.18799,1927.6,1927.4,0.7982]
[1741969843287,5.18806,1927.5,1927.3,1.117878]
[1741969843690,5.18751,1927.8,1927.4,5.18816]
[1741969843885,5.18751,1927.8,1927.5,0.518816]
[1741969844092,5.93727,1928.1,1927.7,5.18731]
[1741969844288,5.18687,1928.0,1927.6,11.96611]
[1741969844483,5.18726,1927.8,1927.6,6.7784]
[1741969844692,5.93738,1928.1,1927.6,6.7784]
[1741969844892,10.37323,1928.1,1927.7,5.18743]
[1741969845088,5.18548,1928.5,1928.1,5.18644]
[1741969845286,10.37103,1928.5,1928.2,0.784]
[1741969845503,5.18574,1928.4,1928.2,0.784]
[1741969845706,5.18543,1928.5,1928.2,0.784]
[1741969845912,5.18514,1928.6,1928.2,7.166009]
[1741969846207,5.18549,1928.5,1928.2,1.980029]
[1741969846800,5.18511,1928.6,1928.2,7.166089]
[1741969847002,5.18511,1928.6,1928.2,7.2179364]
[1741969847404,5.18538,1928.5,1928.2,7.166079]
[1741969847602,5.18538,1928.5,1928.3,0.7166079]
[1741969847802,5.18511,1928.6,1928.3,0.7166079]
[1741969848112,10.37046,1928.6,1928.3,0.7166079]
[1741969848413,5.1854,1928.5,1928.3,0.7166079]
[1741969848708,5.18511,1928.6,1928.3,0.7166079]
[1741969849113,10.37043,1928.6,1928.3,0.7166079]
[1741969849289,5.18541,1928.5,1928.3,0.7166079]
[1741969849485,5.18511,1928.6,1928.3,0.7166079]
[1741969849689,5.1855,1928.5,1928.2,1.980029]
[1741969850318,5.18606,1928.3,1928.1,5.99]
[1741969850504,5.18551,1928.5,1928.1,11.17628]
[1741969850704,5.18551,1928.5,1928.1,16.36259]
[1741969851105,5.18573,1928.4,1928.1,5.99]
[1741969851410,10.37159,1928.4,1928.1,5.99]
[1741969851609,5.18573,1928.4,1928.1,5.99]
[1741969851807,5.18538,1928.5,1928.1,11.17643]
[1741969852000,5.18569,1928.4,1928.1,12.89384]
[1741969852199,5.18569,1928.4,1928.1,11.17643]
[1741969852521,5.18513,1928.6,1928.1,11.17629]
[1741969852819,5.18549,1928.5,1928.1,11.17637]
[1741969853313,5.18549,1928.5,1928.1,11.17628]
[1741969853518,5.1852,1928.6,1928.2,5.18604]
[1741969853688,10.37048,1928.6,1928.2,5.18604]
[1741969854087,0.51825,1929.6,1928.5,0.8185]
[1741969854300,5.18382,1929.1,1928.7,5.18472]
[1741969854512,5.18382,1929.1,1928.7,5.1848]
[1741969854712,5.18382,1929.1,1928.7,5.18466]
[1741969855018,5.18328,1929.3,1928.9,5.9493]
[1741969855189,5.18368,1929.2,1928.9,0.7651]
[1741969856008,10.36739,1929.2,1928.9,0.7651]
[1741969856204,5.18368,1929.2,1928.9,0.7651]
[1741969856405,5.18368,1929.2,1928.9,5.94938]
[1741969856586,5.18309,1929.4,1929.1,5.18373]
[1741969856792,8.18309,1929.4,1929.0,5.18397]
[1741969857003,8.18309,1929.4,1929.0,5.18387]
[1741969857220,5.46,1930.3,1929.2,0.826]
[1741969857421,5.182,1929.8,1929.4,5.18285]
[1741969857615,5.182,1929.8,1929.4,5.18294]
[1741969858125,5.182,1929.8,1929.4,5.18277]
[1741969858319,10.64145,1930.0,1929.6,6.00823]
[1741969859221,10.363,1930.0,1929.6,6.609053]
[1741969859534,5.18145,1930.0,1929.6,6.609053]
[1741969860003,10.363,1930.0,1929.6,6.609053]
[1741969860204,5.18145,1930.0,1929.6,6.609053]
[1741969860407,0.8044,1930.2,1929.6,1.426823]
[1741969860408,5.98527,1930.2,1929.6,1.426823]
[1741969860712,5.18087,1930.2,1929.8,5.18178]
[1741969860909,5.18109,1930.1,1929.8,5.18178]
[1741969861111,5.18136,1930.0,1929.6,11.99839]
[1741969861728,5.18136,1930.0,1929.6,11.99827]
[1741969861900,5.18193,1929.8,1929.6,6.816]
[1741969862112,5.18215,1929.7,1929.6,5.99]
[1741969862414,5.9998,1930.0,1929.6,5.99]
[1741969862723,11.18123,1930.0,1929.6,11.1723]
[1741969863024,5.18165,1929.9,1929.6,12.289549]
[1741969863200,5.99968,1930.0,1929.6,12.289549]
[1741969863538,3.0,1930.2,1929.6,5.99]
[1741969863697,5.1812,1930.1,1929.7,5.18189]
[1741969864024,5.18171,1929.9,1929.6,5.99]
[1741969864541,5.18204,1929.8,1929.6,5.99]
[1741969864710,5.18215,1929.7,1929.4,6.7609]
[1741969865125,3.7541,1930.2,1929.4,8.61743844]
[1741969865306,5.18254,1929.6,1929.4,0.7709]
[1741969865624,10.36514,1929.6,1929.4,0.7709]
[1741969865791,5.18269,1929.5,1929.2,0.7745]
[1741969865995,5.18269,1929.5,1928.9,0.7745]
[1741969865996,4.03978654,1929.5,1928.9,0.7745]
[1741969866191,10.3682,1929.0,1928.7,5.99]
[1741969866401,5.18403,1929.0,1928.7,6.66645]
[1741969866635,5.18431,1928.9,1928.6,0.7745]
[1741969866935,5.18527,1928.6,1928.2,0.7745]
[1741969867127,5.456,1928.5,1928.2,0.7745]
[1741969867427,5.456,1928.5,1928.2,5.96068]
[1741969867723,5.18577,1928.4,1928.2,0.7745]
[1741969867914,5.18577,1928.4,1927.9,12.99514732]
[1741969868113,5.18577,1928.4,1928.0,1.29951473]
[1741969868317,5.456,1928.5,1928.0,1.29951473]
[1741969868521,10.6415,1928.5,1928.0,6.48611473]
[1741969868726,5.18567,1928.4,1928.0,1.29951473]
[1741969868932,5.18603,1928.3,1928.0,1.29951473]
[1741969869132,5.18603,1928.3,1927.9,7.80834732]
[1741969869433,5.18686,1928.0,1927.5,11.96494]
[1741969869727,5.187,1927.9,1927.5,6.777]
[1741969869927,5.18754,1927.7,1927.5,6.777]
[1741969870110,5.18745,1927.8,1927.5,6.777]
[1741969870309,5.18745,1927.8,1927.5,7.4547]
[1741969870922,5.18699,1927.9,1927.4,5.99]
[1741969871102,5.456,1928.0,1927.2,0.7743]
[1741969871103,0.774,1927.8,1927.3,5.99]
[1741969871303,0.774,1927.8,1927.3,11.23027081]
[1741969871304,5.18744,1927.8,1927.3,11.23027081]
[1741969871507,5.18744,1927.8,1927.3,16.36685]
[1741969871741,5.18752,1927.7,1927.3,5.99]
[1741969871972,10.37526,1927.7,1927.3,6.71831053]
[1741969872127,10.64272,1928.0,1927.3,6.71831053]
[1741969872128,5.188,1927.6,1927.3,5.99]
[1741969872708,5.18812,1927.5,1927.3,5.99]
[1741969872935,5.18812,1927.5,1927.0,5.99]
[1741969872936,5.18833,1927.4,1927.0,5.99]
[1741969873434,5.457,1927.5,1926.9,0.7507]
[1741969873435,5.18915,1927.1,1926.9,0.7507]
[1741969874040,10.37816,1927.2,1926.9,0.7507]
[1741969874211,5.1896,1927.0,1926.6,0.91175532]
[1741969874406,5.457,1926.9,1926.7,5.19019]
[1741969874708,5.457,1926.9,1926.8,0.519019]
[1741969876614,5.458,1927.0,1926.8,5.708959]
[1741969877012,0.7609,1927.6,1927.1,0.7657]
[1741969877327,5.457,1927.7,1927.4,5.18811]
[1741969877525,5.457,1927.7,1927.5,0.518811]
[1741969877846,5.18807,1927.5,1927.2,5.99]
[1741969878059,5.18779,1927.6,1926.8,7.261819]
[1741969878363,5.19022,1926.7,1926.1,0.7528]
[1741969878526,5.458,1926.8,1926.6,0.84915532]
[1741969878735,5.458,1926.8,1926.0,1.03732907]
[1741969878970,5.458,1926.8,1925.8,0.7528]
[1741969878971,5.19205,1926.1,1925.8,0.7528]
[1741969879113,4.03978654,1926.6,1925.8,0.7528]
[1741969879114,0.55,1926.6,1925.8,0.7528]
[1741969879314,3.0,1926.4,1925.8,0.7528]
[1741969879544,5.19145,1926.3,1925.8,0.7528]
[1741969879749,5.19198,1926.1,1925.8,0.7528]
[1741969880068,5.458,1926.0,1925.6,5.19317]
[1741969880350,10.66126,1926.0,1925.5,0.7667]
[1741969881062,5.19265,1925.8,1925.5,0.7667]
[1741969881222,5.19265,1925.8,1925.3,5.19399]
[1741969881729,5.19265,1925.8,1925.2,7.81047021]
[1741969881730,5.469,1926.0,1925.6,5.19316]
[1741969881923,10.66127,1926.0,1925.5,5.19342]
[1741969882124,10.66127,1926.0,1925.5,5.19332]
[1741969882519,5.469,1926.0,1925.6,5.19318]
[1741969882720,5.73622,1926.7,1925.7,0.0519259]
[1741969882922,5.73622,1926.7,1926.2,5.19148]
[1741969882923,6.2605,1926.6,1926.2,5.19148]
[1741969883141,0.7792,1926.8,1926.5,5.19053]
[1741969883365,11.40406298,1927.1,1926.5,5.19059]
[1741969883366,5.18941,1927.0,1926.5,5.19059]
[1741969883565,5.484,1927.1,1926.5,5.19059]
[1741969883566,10.6733,1927.1,1926.6,5.19047]
[1741969883753,5.18942,1927.0,1926.6,5.19037]
[1741969883957,5.18942,1927.0,1926.5,11.18074]
[1741969884154,5.1899,1926.9,1926.5,7.185904]
[1741969884477,5.19049,1926.6,1926.5,5.99]
[1741969884649,5.19049,1926.6,1926.1,5.19168]
[1741969884843,5.19049,1926.6,1926.2,5.24335124]
[1741969885073,5.1901,1926.8,1926.3,5.19128]
[1741969885275,5.19041,1926.7,1926.2,10.38285]
[1741969885470,5.18969,1926.9,1926.0,11.99706]
[1741969885672,5.19054,1926.6,1926.1,5.19163]
[1741969885877,5.19024,1926.7,1926.2,5.19154]
[1741969886071,5.19024,1926.7,1926.2,10.38297]
[1741969886270,5.1901,1926.8,1926.4,5.19097]
[1741969886457,5.1898,1926.9,1926.5,0.7553]
[1741969886658,5.18959,1927.0,1926.6,5.19047]
[1741969886849,5.18952,1927.0,1926.5,11.93583]
[1741969887047,5.18952,1927.0,1926.6,5.19046]
[1741969887247,10.3791,1927.0,1926.5,11.93583]
[1741969887468,10.37975,1926.9,1926.5,8.0427045]
[1741969887780,5.19006,1926.8,1926.5,8.0427045]
[1741969887983,5.1898,1926.9,1926.5,8.0427045]
[1741969888884,5.1893,1927.1,1926.5,13.2333445]
[1741969889055,11.4949,1927.2,1926.7,5.19022]
[1741969889254,5.18938,1927.1,1926.6,5.19025]
[1741969889562,5.18938,1927.1,1926.6,11.70383545]
[1741969889757,6.01391,1927.2,1926.7,5.1902]
[1741969889961,11.48791,1927.2,1926.7,5.1902]
[1741969890166,5.97011,1927.4,1926.9,5.18953]
[1741969890362,5.472,1927.3,1927.0,5.98206]
[1741969890560,5.18836,1927.4,1927.0,0.7928]
[1741969890887,5.469,1927.6,1927.1,5.18896]
[1741969891085,5.18718,1927.9,1927.5,5.18793]
[1741969891296,6.064008,1927.9,1927.5,5.18793]
[1741969891589,5.18738,1927.8,1927.5,0.8077]
[1741969891953,5.18766,1927.7,1927.2,11.98645]
[1741969892156,5.18817,1927.5,1927.2,6.7977]
[1741969892486,5.18795,1927.6,1927.2,6.7977]
[1741969892688,5.18752,1927.8,1927.3,5.18845]
[1741969892997,0.518752,1927.7,1927.3,10.37684]